bitfinex-derivatives/quotes_BNBF0:USTF0_20250316
["timestamp","ask_amount","ask_price","bid_price","bid_amount"]
[1742108551666,3.59575249,608.91,607.56,0.30218212]
[1742108551868,3.59575249,608.9,607.56,0.30218212]
[1742108552066,3.59575249,608.89,607.56,0.30218212]
[1742108552271,3.59575249,608.88,607.56,0.30218212]
[1742108552471,3.59575249,608.87,607.56,0.30218212]
[1742108552674,3.59575249,608.86,607.56,0.30218212]
[1742108552873,2.51296556,608.9,607.56,0.30218212]
[1742108554068,3.59575249,608.91,607.56,0.30218212]
[1742108554270,6.16150299,608.9,607.56,0.30218212]
[1742108554472,3.59575249,608.89,607.56,0.30218212]
[1742108554676,3.59575249,608.88,607.56,0.30218212]
[1742108554877,3.59575249,608.87,607.55,1.921]
[1742108555075,3.59575249,608.86,607.56,0.30218084]
[1742108555276,2.5657505,608.9,607.56,0.30218084]
[1742108555475,3.59731775,608.93,607.56,0.30218084]
[1742108555673,3.59731775,608.92,607.56,0.30218084]
[1742108555874,3.59731775,608.91,607.56,0.30218084]
[1742108556075,3.59731775,608.9,607.56,0.30218084]
[1742108556276,2.51296556,608.94,607.55,0.30218084]
[1742108556471,2.51296556,608.94,607.56,0.30218084]
[1742108556676,2.51296556,608.94,607.55,1.863]
[1742108556871,2.51296556,608.94,607.57,0.3021805]
[1742108557073,2.51296556,608.94,607.55,1.863]
[1742108557476,2.51296556,608.94,607.56,0.30218052]
[1742108558573,2.51296556,608.92,607.56,0.30218052]
[1742108558873,2.51296556,608.92,607.57,0.30214629]
[1742108559076,2.51296556,608.92,607.56,0.30214629]
[1742108559280,2.51296556,608.92,607.55,1.863]
[1742108559478,2.51296556,608.92,607.56,0.30215155]
[1742108559975,2.51296556,608.92,607.56,1.73115155]
[1742108560175,2.51296556,608.92,607.57,0.30215155]
[1742108560376,3.59749294,609.05,607.57,0.30215155]
[1742108560577,1.52885559,609.04,607.57,0.30215155]
[1742108560878,1.52885559,609.04,607.58,0.30213264]
[1742108561075,1.52885559,609.04,607.59,0.30213264]
[1742108561379,1.52885559,609.04,607.6,0.30213264]
[1742108561574,4.09460609,609.04,607.57,0.30213264]
[1742108561777,3.59749294,609.03,607.58,0.30213264]
[1742108561980,3.59716639,609.02,607.57,0.30213264]
[1742108562186,2.51296556,608.94,607.57,0.30213264]
[1742108564783,3.59675998,609.01,607.57,0.30213264]
[1742108564977,2.5657505,609.02,607.57,0.30213264]
[1742108565382,2.5657505,609.0,607.56,1.429]
[1742108565882,2.5657505,609.0,607.57,0.30202526]
[1742108566481,2.51296556,609.09,607.57,0.30202526]
[1742108566685,2.51296556,609.09,607.59,0.32916934]
[1742108566887,0.2860466,609.69,607.6,0.30202526]
[1742108567083,0.32808937,609.59,607.62,0.32915308]
[1742108567278,0.32808937,609.59,607.63,0.30202526]
[1742108567684,0.32808937,609.59,607.65,0.32913683]
[1742108567878,0.32808937,609.59,607.66,0.30202526]
[1742108568080,0.32808937,609.59,607.68,0.32912058]
[1742108568486,0.32808937,609.59,607.69,0.30197374]
[1742108569084,0.32808937,609.59,607.71,0.32910434]
[1742108569286,0.32808937,609.59,607.72,0.30197374]
[1742108569489,0.32808937,609.59,607.74,0.32908809]
[1742108569691,0.32808937,609.59,607.75,0.30197374]
[1742108569890,0.32808937,609.59,607.76,0.32907726]
[1742108570486,0.32808937,609.59,607.77,0.30193966]
[1742108570687,0.32808937,609.59,607.78,0.32906643]
[1742108572191,0.32808937,609.59,607.79,0.30193921]
[1742108572390,0.32808937,609.59,607.8,0.32905561]
[1742108572592,0.32808937,609.59,607.81,0.30193921]
[1742108572886,0.32808937,609.59,607.82,0.63098431]
[1742108573092,0.32808937,609.59,607.83,0.63097889]
[1742108573292,0.32808937,609.59,607.84,0.32903395]
[1742108574487,0.32808937,609.59,607.85,0.30198115]
[1742108574687,0.32808937,609.59,607.86,0.32902313]
[1742108574892,0.32808937,609.59,607.87,0.30198115]
[1742108575288,0.32808937,609.59,607.88,1.861]
[1742108575491,0.32808937,609.59,607.89,0.30198115]
[1742108576094,0.32808937,609.59,607.9,0.30198177]
[1742108576294,0.32808937,609.59,607.89,0.30198177]
[1742108576494,0.32808937,609.59,607.9,0.30198177]
[1742108576695,0.32808937,609.59,607.91,0.30198177]
[1742108579090,0.32808937,609.59,607.91,1.77198177]
[1742108579296,0.32808937,609.59,607.92,0.30198177]
[1742108579596,0.32808937,609.59,607.91,1.47]
[1742108579796,0.32808937,609.59,607.92,0.30198507]
[1742108580197,0.32808937,609.59,607.91,1.47]
[1742108586002,0.32808937,609.59,607.91,3.057]
[1742108590306,0.32808937,609.59,607.92,0.30196245]
[1742108590708,0.32808937,609.59,607.91,3.057]
[1742108590908,0.32808937,609.59,607.92,0.30196236]
[1742108594806,0.32808937,609.59,607.93,0.30194813]
[1742108595005,0.32808937,609.59,607.92,0.30194813]
[1742108598406,0.32808937,609.59,607.93,0.32898524]
[1742108598608,2.51296556,609.52,607.94,0.30194813]
[1742108598811,0.32813781,609.5,607.94,0.30194813]
[1742108600413,0.32813781,609.5,607.93,0.32898524]
[1742108600606,0.32813781,609.5,607.94,0.30193576]
[1742108603817,0.32813781,609.5,607.95,1.656]
[1742108604018,0.32813781,609.5,607.96,0.30193576]
[1742108606217,0.32813781,609.5,607.97,0.30193561]
[1742108606420,0.32813781,609.5,607.96,0.30193561]
[1742108606617,0.32813781,609.5,607.97,0.30193561]
[1742108606823,0.32813781,609.5,607.96,0.30193561]
[1742108607020,0.32813781,609.5,607.97,0.30193561]
[1742108607221,0.32813781,609.5,607.96,0.30193561]
[1742108607416,0.32813781,609.5,607.97,0.30193561]
[1742108607621,0.32813781,609.5,607.96,0.30193561]
[1742108607822,0.32813781,609.5,607.97,0.30193561]
[1742108608024,0.32813781,609.5,607.96,0.30193561]
[1742108608224,0.32813781,609.5,607.96,0.63090462]
[1742108608525,0.32813781,609.5,607.97,0.63089921]
[1742108608724,0.32813781,609.5,607.98,0.63089379]
[1742108608926,0.32813781,609.5,607.99,0.30193561]
[1742108610018,0.32813781,609.5,607.98,0.32895818]
[1742108610019,2.84110337,609.5,608.0,0.30190547]
[1742108610319,2.84110337,609.5,608.01,0.30190547]
[1742108610523,2.84110337,609.5,608.02,0.30190547]
[1742108610724,2.84110337,609.5,607.99,0.30190547]
[1742108610926,2.84110337,609.5,608.0,0.30190547]
[1742108611125,2.84110337,609.5,607.99,0.30190547]
[1742108611322,2.51296556,609.44,607.99,0.30190547]
[1742108611522,0.3281755,609.43,607.99,0.30190547]
[1742108613118,2.84114106,609.43,607.99,0.30190547]
[1742108614224,2.51296556,609.39,607.99,0.30190547]
[1742108614424,0.32820243,609.38,607.99,0.30190547]
[1742108615921,0.32820243,609.38,608.0,0.30190542]
[1742108616122,0.32820243,609.38,607.98,0.32895818]
[1742108616123,2.51296556,609.37,608.01,0.30190542]
[1742108616320,0.3282132,609.36,607.99,0.30190542]
[1742108616623,0.3282132,609.36,608.0,0.30190542]
[1742108616824,0.3282132,609.36,607.99,0.30190542]
[1742108617025,0.3282132,609.36,608.0,0.30190542]
[1742108617325,0.3282132,609.36,608.01,0.30190542]
[1742108617525,3.90619926,609.36,607.98,0.32895818]
[1742108617727,3.90619926,609.36,607.99,0.30190602]
[1742108617926,3.57798606,609.35,607.99,0.30190602]
[1742108618223,3.90621004,609.34,607.99,0.30190602]
[1742108618431,3.90621542,609.33,607.99,0.30190602]
[1742108618627,3.57798606,609.32,607.99,0.30190602]
[1742108618928,3.9062262,609.31,607.99,0.30190602]
[1742108619128,0.32824552,609.3,607.99,0.30190602]
[1742108619329,0.32824552,609.3,607.98,0.32895818]
[1742108619529,0.32824552,609.3,608.0,0.30189782]
[1742108619729,0.32824552,609.3,608.01,0.30189782]
[1742108619730,2.51296556,609.25,608.01,0.30189782]
[1742108619926,2.84123802,609.25,607.99,0.30189782]
[1742108620230,2.84123802,609.25,608.0,0.30189782]
[1742108620423,2.84123802,609.25,607.99,0.30189782]
[1742108620623,3.58484163,609.24,608.0,0.30189782]
[1742108620827,2.84123802,609.25,607.99,0.30189782]
[1742108621425,6.09974223,609.24,607.99,0.30189782]
[1742108622732,2.54711629,609.23,607.99,0.30189782]
[1742108622930,6.13389296,609.23,607.99,0.30189782]
[1742108623131,2.54711629,609.23,607.99,0.30189782]
[1742108623430,2.54711629,609.23,607.98,0.32895818]
[1742108623630,2.54711629,609.23,607.99,0.30189782]
[1742108624232,6.13539287,609.23,607.99,0.30189782]
[1742108627233,6.13539287,609.23,607.99,0.63085059]
[1742108627434,2.54711629,609.23,608.0,0.63084518]
[1742108627832,2.54711629,609.23,608.01,0.30189782]
[1742108628635,0.32827246,609.25,608.01,0.30189782]
[1742108633741,0.32827246,609.25,608.02,0.32893654]
[1742108633941,0.32827246,609.25,608.03,0.30189782]
[1742108634138,0.32827246,609.25,608.04,0.32892572]
[1742108634337,0.32827246,609.25,608.05,0.30189782]
[1742108634536,0.32827246,609.25,608.05,0.63081813]
[1742108634736,0.32827246,609.25,608.06,0.30189782]
[1742108636745,0.32827246,609.25,608.07,0.3018839]
[1742108636943,0.32827246,609.25,608.08,0.3018839]
[1742108637141,0.32827246,609.25,608.06,0.3018839]
[1742108637340,0.32827246,609.25,608.07,0.3018839]
[1742108637644,0.32827246,609.25,608.08,0.3018839]
[1742108637845,0.32827246,609.25,608.06,0.3018839]
[1742108638644,0.32827246,609.25,608.05,0.32892031]
[1742108638842,0.32827246,609.25,608.06,0.30188389]
[1742108642950,0.32827246,609.25,608.06,0.63079879]
[1742108643151,0.32827246,609.25,608.07,0.30188389]
[1742108643845,0.32827246,609.25,608.08,0.30188391]
[1742108644048,0.32827246,609.25,608.07,0.30188391]
[1742108644349,0.32827246,609.25,608.08,0.30188391]
[1742108644649,0.32827246,609.25,608.09,0.30188391]
[1742108644849,0.32827246,609.25,608.07,0.30188391]
[1742108647549,0.32827246,609.25,608.06,0.3289149]
[1742108647746,0.32827246,609.25,608.07,0.30188658]
[1742108648652,0.32827246,609.25,608.07,0.63079608]
[1742108648853,0.32827246,609.25,608.08,0.30188658]
[1742108649851,0.32827246,609.25,608.08,0.63079067]
[1742108650050,0.32827246,609.25,608.09,0.30188658]
[1742108650549,0.32827246,609.25,608.09,1.76388658]
[1742108650754,0.32827246,609.25,608.1,0.30188658]
[1742108652755,0.32827246,609.25,608.09,1.462]
[1742108652956,0.32827246,609.25,608.1,0.30187003]
[1742108653558,0.32827246,609.25,608.09,1.462]
[1742108657362,0.32827246,609.25,608.1,1.781]
[1742108670378,0.32827246,609.25,608.09,1.462]
[1742108672373,2.87538875,609.25,608.09,1.462]
[1742108672778,2.87538875,609.25,608.1,1.745]
[1742108673481,2.87538875,609.25,608.11,1.627]
[1742108674075,0.32827246,609.25,608.11,1.627]
[1742108685496,0.32827246,609.25,608.1,1.745]
[1742108686189,0.32827246,609.25,608.11,1.328]
[1742108687699,0.32827246,609.25,608.12,1.548]
[1742108688596,2.51296556,609.16,608.12,1.548]
[1742108688798,0.32833174,609.14,608.12,1.548]
[1742108690100,1.84841294,609.14,608.12,1.548]
[1742108690596,4.39552923,609.14,608.12,1.548]
[1742108690800,5.1049555,609.13,608.12,1.548]
[1742108691100,0.32834791,609.11,608.12,1.548]
[1742108692194,2.51296556,609.09,608.12,1.548]
[1742108692394,0.32836948,609.07,608.12,1.548]
[1742108692796,1.84802888,609.07,608.12,1.548]
[1742108693693,4.39514517,609.07,608.12,1.548]
[1742108693897,5.1045337,609.06,608.12,1.548]
[1742108694101,2.51296556,609.02,608.12,1.548]
[1742108694401,0.32840183,609.01,608.12,1.548]
[1742108695002,3.91327613,609.01,608.12,1.548]
[1742108695402,6.46039242,609.01,608.12,1.548]
[1742108695602,2.87551812,609.01,608.12,1.548]
[1742108696597,2.87551812,609.01,608.13,1.458]
[1742108696999,0.32840183,609.01,608.13,1.458]
[1742108698702,3.90354574,609.01,608.13,1.458]
[1742108699701,2.51296556,608.92,608.13,1.458]
[1742108699905,0.32845576,608.91,608.13,1.458]
[1742108702107,0.32845576,608.91,608.14,2.004]
[1742108705307,0.32845576,608.91,608.15,1.245]
[1742108707504,2.84142132,608.91,608.15,1.245]
[1742108710202,3.57896529,608.9,608.15,1.245]
[1742108710404,2.84143211,608.89,608.15,1.245]
[1742108710602,0.32847194,608.88,608.15,1.245]
[1742108735722,0.32847194,608.88,608.15,3.182]
[1742108738421,2.51296556,608.86,608.15,3.182]
[1742108739426,0.32848813,608.85,608.15,3.182]
[1742108756835,0.32848813,608.85,608.15,5.105]
[1742108760636,2.51296556,608.84,608.15,5.105]
[1742108760940,0.32849892,608.83,608.15,5.105]
[1742108761640,1.84991656,608.83,608.15,5.105]
[1742108762340,5.42826769,608.83,608.15,5.105]
[1742108762640,1.52141764,608.82,608.15,5.105]
[1742108762837,2.51296556,608.71,608.15,5.105]
[1742108763034,0.32856908,608.7,608.15,5.105]
[1742108763535,0.32856908,608.7,608.15,1.923]
[1742108764440,2.51296556,608.66,608.15,1.923]
[1742108764634,0.32859607,608.65,608.15,1.923]
[1742108765337,3.90895797,608.65,608.15,1.923]
[1742108766041,2.54711629,608.64,608.15,1.923]
[1742108766242,0.32860687,608.63,608.15,1.923]
[1742108766442,2.51296556,608.59,608.15,1.923]
[1742108766743,0.32863386,608.58,608.15,1.923]
[1742108774848,0.32863386,608.58,608.09,1.715]
[1742108778352,0.32863386,608.58,608.03,1.938]
[1742108788248,0.32863386,608.58,608.02,2.916]
[1742108789051,2.51296556,608.53,608.02,2.916]
[1742108789256,0.32866627,608.52,608.02,2.916]
[1742108789453,3.91825557,608.52,608.02,2.916]
[1742108789756,0.32866627,608.52,608.02,2.916]
[1742108792158,0.32866627,608.52,606.92,0.28626661]
[1742108792358,0.32866627,608.52,606.93,0.30244151]
[1742108792755,0.28645276,608.51,606.7,0.30244151]
[1742108792958,0.32868247,608.49,606.94,1.13795853]
[1742108793553,0.32868247,608.49,606.68,0.28645276]
[1742108793755,0.32868247,608.49,606.19,1.22974189]
[1742108793958,0.32868247,608.49,606.42,0.28660965]
[1742108794353,0.32868247,608.49,606.21,0.32991867]
[1742108794557,0.32868247,608.49,606.43,1.13384429]
[1742108795061,0.32868247,608.49,606.43,2.71284429]
[1742108795255,0.32868247,608.49,606.44,1.13384429]
[1742108795654,0.32868247,608.49,606.45,0.6324565]
[1742108795856,0.32868247,608.49,606.46,0.63245106]
[1742108796059,0.32868247,608.49,606.47,0.32977723]
[1742108796358,0.32868247,608.49,606.48,0.30266413]
[1742108796758,0.32868247,608.49,606.49,0.32976636]
[1742108796960,0.32868247,608.49,606.5,0.30266413]
[1742108797160,0.32868247,608.49,606.51,0.32975548]
[1742108797658,0.32868247,608.49,606.52,1.13384429]
[1742108797858,0.32868247,608.49,606.53,0.32974461]
[1742108798253,0.32868247,608.49,606.52,1.13384429]
[1742108798859,0.32868247,608.49,606.43,2.992]
[1742108803563,2.51296556,608.4,606.43,2.992]
[1742108803966,0.3287419,608.38,606.43,2.992]
[1742108804764,0.28666867,608.37,606.43,2.992]
[1742108804964,0.32875811,608.35,606.43,2.992]
[1742108808079,0.28666395,608.34,606.43,2.992]
[1742108808275,0.32877432,608.32,606.43,2.992]
[1742108811080,0.28667457,608.31,606.43,2.992]
[1742108811273,0.32879054,608.29,606.43,2.992]
[1742108813781,0.28665214,608.28,606.43,2.992]
[1742108813982,0.32880676,608.26,606.43,2.992]
[1742108816984,0.28665568,608.25,606.43,2.992]
[1742108817185,0.32882297,608.23,606.43,2.992]
[1742108817786,0.32882297,608.23,606.44,0.63247402]
[1742108817987,0.32882297,608.23,606.45,0.63246859]
[1742108818182,0.32882297,608.23,606.46,0.63246315]
[1742108818386,0.32882297,608.23,606.47,0.63245771]
[1742108818587,0.32882297,608.23,606.48,0.63245227]
[1742108818786,0.32882297,608.23,606.49,0.63244684]
[1742108818987,0.32882297,608.23,606.5,0.6324414]
[1742108819288,0.32882297,608.23,606.51,0.63243596]
[1742108819489,0.32882297,608.23,606.52,0.30268048]
[1742108820185,0.32882297,608.23,606.53,0.3026751]
[1742108820389,0.32882297,608.23,606.52,0.3026751]
[1742108821390,0.32882297,608.23,606.53,0.30267165]
[1742108821587,0.32882297,608.23,606.52,0.30267165]
[1742108821891,0.32882297,608.23,606.51,0.32975548]
[1742108822090,0.32882297,608.23,606.52,1.623]
[1742108827897,2.51296556,608.18,606.52,1.623]
[1742108828089,0.32886082,608.16,606.52,1.623]
[1742108828695,0.28663798,608.15,606.52,1.623]
[1742108828896,0.32887704,608.13,606.52,1.623]
[1742108830589,2.51296556,607.85,606.52,1.623]
[1742108830990,0.32903936,607.83,606.52,1.623]
[1742108832393,2.51296556,607.81,606.52,1.623]
[1742108832695,0.32906102,607.79,606.52,1.623]
[1742108836392,2.84202658,607.79,606.52,1.623]
[1742108836697,2.84202658,607.79,606.52,2.803]
[1742108836997,2.84202658,607.79,606.53,0.30276316]
[1742108837300,2.84202658,607.79,606.52,2.803]
[1742108837492,2.84202658,607.79,606.53,0.30276263]
[1742108837995,2.51296556,607.57,606.53,0.30276263]
[1742108838297,0.32918559,607.56,606.53,0.30276263]
[1742108840200,2.51296556,607.55,606.53,0.30276263]
[1742108840501,0.32919643,607.54,606.53,0.30276263]
[1742108841804,0.32919643,607.54,606.52,1.18]
[1742108843701,0.32919643,607.54,606.52,2.963]
[1742108849104,0.32919643,607.54,606.52,4.335]
[1742108875823,2.51296556,607.51,606.52,4.335]
[1742108876026,0.32922352,607.49,606.52,4.335]
[1742108881936,2.51296556,607.46,606.52,4.335]
[1742108882137,0.32925062,607.44,606.52,4.335]
[1742108904149,2.51296556,607.4,606.52,4.335]
[1742108904345,0.32928315,607.38,606.52,4.335]
[1742108908052,2.84224871,607.38,606.52,4.335]
[1742108909050,1.52103426,607.37,606.52,4.335]
[1742108909255,0.32929941,607.35,606.52,4.335]
[1742108910054,2.51296556,607.34,606.52,4.335]
[1742108910254,0.32931568,607.32,606.52,4.335]
[1742108912758,2.51296556,607.24,606.52,4.335]
[1742108912954,0.32936449,607.23,606.52,4.335]
[1742108913152,1.85039875,607.23,606.52,4.335]
[1742108914055,2.51296556,607.18,606.52,4.335]
[1742108914260,0.32939703,607.17,606.52,4.335]
[1742108927373,2.51296556,607.16,606.52,4.335]
[1742108927565,0.32940788,607.15,606.52,4.335]
[1742108936774,2.84237344,607.15,606.52,4.335]
[1742108937779,2.51296556,607.13,606.52,4.335]
[1742108937981,0.32942416,607.12,606.52,4.335]
[1742108939480,2.51296556,607.05,606.52,4.335]
[1742108939675,0.32946758,607.04,606.52,4.335]
[1742108939880,0.32946758,607.04,605.15,1.22974189]
[1742108940078,0.32946758,607.04,605.17,0.33048564]
[1742108940277,0.32946758,607.04,605.18,0.30310574]
[1742108940480,0.32946758,607.04,605.2,0.33046926]
[1742108940682,0.32946758,607.04,605.21,0.30310574]
[1742108940982,0.32946758,607.04,605.23,0.33045288]
[1742108941180,0.32946758,607.04,605.24,0.30310574]
[1742108941386,0.32946758,607.04,605.25,0.33044196]
[1742108941683,0.32946758,607.04,605.26,0.30310574]
[1742108942287,0.32946758,607.04,605.27,1.792]
[1742108942486,0.32946758,607.04,605.29,0.33042012]
[1742108942887,0.32946758,607.04,605.3,0.30310574]
[1742108943083,0.32946758,607.04,605.31,0.33040921]
[1742108943389,0.32946758,607.04,605.32,0.30310574]
[1742108943683,0.32946758,607.04,605.33,0.33039829]
[1742108943889,0.32946758,607.04,605.34,0.30310574]
[1742108944089,0.32946758,607.04,605.35,0.33038737]
[1742108944289,0.32946758,607.04,605.36,0.30310574]
[1742108944789,0.32946758,607.04,605.37,1.13749358]
[1742108945088,0.32946758,607.04,605.38,0.30310574]
[1742108945288,0.32946758,607.04,605.38,1.44059932]
[1742108945489,0.32946758,607.04,605.39,0.30310574]
[1742108946090,0.32946758,607.04,605.4,1.13749358]
[1742108946285,0.32946758,607.04,605.41,0.30310574]
[1742108946489,0.32946758,607.04,605.42,1.13749358]
[1742108946694,0.32946758,607.04,605.43,0.63344946]
[1742108946890,0.32946758,607.04,605.44,0.633444]
[1742108947084,0.32946758,607.04,605.45,0.63343855]
[1742108947284,0.32946758,607.04,605.46,0.30310574]
[1742108947489,0.32946758,607.04,605.45,0.33033281]
[1742108947689,0.32946758,607.04,605.46,1.13749358]
[1742108948393,0.32946758,607.04,605.47,1.13749358]
[1742108949394,0.32946758,607.04,605.48,1.13749358]
[1742108949893,0.32946758,607.04,605.49,1.13749358]
[1742108950493,0.32946758,607.04,605.5,1.13749358]
[1742108950992,0.32946758,607.04,605.51,1.13749358]
[1742108951995,0.32946758,607.04,605.52,1.13749358]
[1742108952394,0.32946758,607.04,605.53,1.13749358]
[1742108953195,0.32946758,607.04,605.45,0.33033281]
[1742108953196,0.32946758,607.04,605.54,1.13749358]
[1742108953896,0.32946758,607.04,605.55,1.13749358]
[1742108954700,0.32946758,607.04,605.56,1.13749358]
[1742108955603,0.32946758,607.04,605.45,0.33033281]
[1742108956000,0.28706595,607.03,605.45,0.33033281]
[1742108956202,0.32948386,607.01,605.45,0.33033281]
[1742108957303,0.32948386,607.01,605.46,1.13496707]
[1742108957701,0.32948386,607.01,605.45,0.33033281]
[1742108962004,0.28716188,607.0,605.45,0.33033281]
[1742108962205,0.32950014,606.98,605.45,0.33033281]
[1742108963104,0.32950014,606.98,605.29,1.607]
[1742108964008,0.28720691,606.97,605.29,1.607]
[1742108964206,0.32951643,606.95,605.29,1.607]
[1742108966701,0.32951643,606.95,605.29,3.249]
[1742108966906,0.32951643,606.95,605.29,4.552]
[1742108968013,0.28715833,606.94,605.29,4.552]
[1742108968805,0.32953272,606.92,605.29,4.552]
[1742108971111,0.28717373,606.91,605.29,4.552]
[1742108972207,0.32954901,606.89,605.29,4.552]
[1742108972909,0.28722469,606.88,605.29,4.552]
[1742108973207,0.3295653,606.86,605.29,4.552]
[1742108974610,0.3295653,606.86,605.3,0.30334573]
[1742108975212,0.3295653,606.86,605.29,4.552]
[1742108976313,2.51296556,606.8,605.29,4.552]
[1742108977413,0.28723773,606.84,605.29,4.552]
[1742108977815,0.32958702,606.82,605.29,4.552]
[1742108981923,0.32958702,606.82,605.3,0.30334584]
[1742108983825,0.32958702,606.82,605.29,2.945]
[1742108984023,2.51296556,606.56,605.31,0.30334671]
[1742108984224,0.32973917,606.54,605.32,0.30334671]
[1742108984417,0.32973917,606.54,605.3,0.30334671]
[1742108984619,0.32973917,606.54,605.31,0.30334671]
[1742108984922,0.32973917,606.54,605.32,0.30334671]
[1742108985119,0.32973917,606.54,605.3,0.30334671]
[1742108985322,0.32973917,606.54,605.31,0.30334671]
[1742108985521,2.51296556,606.46,605.32,0.30334671]
[1742108985826,0.32978811,606.45,605.33,0.30334671]
[1742108986027,0.32978811,606.45,605.29,2.945]
[1742108986028,0.32978811,606.45,605.3,0.30334671]
[1742108986227,0.32978811,606.45,605.33,1.581]
[1742108986428,0.32978811,606.45,605.34,0.30334671]
[1742108987521,2.51296556,606.44,605.34,0.30334671]
[1742108988026,2.51296556,606.44,605.33,1.581]
[1742108989023,0.32978811,606.45,605.33,1.581]
[1742108995329,0.32978811,606.45,605.34,1.753]
[1742109006431,0.32978811,606.45,605.33,1.581]
[1742109006841,0.32978811,606.45,605.34,1.13627338]
[1742109007441,0.32978811,606.45,605.35,1.13627338]
[1742109007837,0.32978811,606.45,605.34,1.13627338]
[1742109009837,0.32978811,606.45,605.35,1.597]
[1742109010543,0.32978811,606.45,605.36,1.13627338]
[1742109016646,0.32978811,606.45,605.37,0.30329955]
[1742109017248,0.32978811,606.45,605.38,1.319]
[1742109017548,0.32978811,606.45,605.39,1.13627338]
[1742109018151,0.32978811,606.45,605.4,0.30327148]
[1742109018651,0.32978811,606.45,605.41,1.13627338]
[1742109018852,0.32978811,606.45,605.42,0.30327148]
[1742109019252,0.32978811,606.45,605.43,1.43954562]
[1742109019447,0.32978811,606.45,605.44,0.30327224]
[1742109019845,0.32978811,606.45,605.45,1.13627338]
[1742109020251,0.32978811,606.45,605.39,1.13627338]
[1742109020452,0.32978811,606.45,605.4,0.303277]
[1742109021046,0.32978811,606.45,605.41,1.13627338]
[1742109021253,0.32978811,606.45,605.39,1.13627338]
[1742109022047,0.32978811,606.45,605.4,0.30323979]
[1742109022249,0.32978811,606.45,605.41,1.13627338]
[1742109022850,0.32978811,606.45,605.39,1.13627338]
[1742109023048,0.32978811,606.45,605.4,0.30323474]
[1742109023853,0.32978811,606.45,605.41,1.13627338]
[1742109024053,0.32978811,606.45,605.42,0.30323474]
[1742109024752,0.32978811,606.45,605.43,1.13627338]
[1742109025352,0.32978811,606.45,605.39,1.13627338]
[1742109025551,0.32978811,606.45,605.4,0.30324163]
[1742109025949,0.32978811,606.45,605.41,1.13627338]
[1742109026754,0.32978811,606.45,605.39,1.13627338]
[1742109036858,0.32978811,606.45,605.4,1.18]
[1742109037455,0.32978811,606.45,605.41,1.43951239]
[1742109037761,0.32978811,606.45,605.41,1.13627338]
[1742109037960,0.32978811,606.45,605.42,1.13627338]
[1742109038458,0.32978811,606.45,605.41,1.13627338]
[1742109039255,0.32978811,606.45,605.42,0.30323953]
[1742109039662,0.32978811,606.45,605.43,1.13627338]
[1742109039858,0.32978811,606.45,605.44,0.30323953]
[1742109040270,0.32978811,606.45,605.45,1.43951237]
[1742109040466,0.32978811,606.45,605.46,0.30323899]
[1742109040871,0.32978811,606.45,605.47,1.13627338]
[1742109041068,0.32978811,606.45,605.48,0.30323899]
[1742109041873,0.32978811,606.45,605.49,1.13627338]
[1742109042170,0.32978811,606.45,605.5,0.30323899]
[1742109042667,0.32978811,606.45,605.51,1.13627338]
[1742109043075,0.32978811,606.45,605.52,0.30322613]
[1742109043371,0.32978811,606.45,605.53,1.13627338]
[1742109044366,0.32978811,606.45,605.43,1.13627338]
[1742109044567,0.32978811,606.45,605.44,0.30321694]
[1742109044972,0.32978811,606.45,605.45,1.13627338]
[1742109045269,0.32978811,606.45,605.46,0.30321694]
[1742109045878,0.32978811,606.45,605.47,0.30321575]
[1742109046079,0.32978811,606.45,605.46,0.30321575]
[1742109046376,0.32978811,606.45,605.47,0.30321575]
[1742109046576,0.32978811,606.45,605.48,1.13627338]
[1742109046773,0.32978811,606.45,605.49,0.30321575]
[1742109047076,0.32978811,606.45,605.5,1.13627338]
[1742109047376,0.32978811,606.45,605.51,0.30321575]
[1742109047581,0.32978811,606.45,605.52,1.13627338]
[1742109047780,0.32978811,606.45,605.53,0.30321575]
[1742109048078,0.32978811,606.45,605.52,1.13627338]
[1742109048274,0.32978811,606.45,605.54,1.13627338]
[1742109048978,0.32978811,606.45,605.42,1.255]
[1742109048979,0.32978811,606.45,605.55,1.13627338]
[1742109049278,0.32978811,606.45,605.42,1.255]
[1742109049479,0.32978811,606.45,605.56,1.13732822]
[1742109050078,0.32978811,606.45,605.42,1.255]
[1742109050274,0.32978811,606.45,605.43,0.30322858]
[1742109050781,0.32978811,606.45,605.44,1.13743292]
[1742109050975,0.32978811,606.45,605.45,0.30322858]
[1742109051177,0.32978811,606.45,605.45,1.4406615]
[1742109051377,0.32978811,606.45,605.46,0.30322858]
[1742109051578,0.32978811,606.45,605.47,1.13743292]
[1742109051881,0.32978811,606.45,605.48,0.30322858]
[1742109052079,0.32978811,606.45,605.49,1.13743292]